fUSD/lending_fUSD_20240630
["ID","MTS","AMOUNT","RATE_DAILY","PERIOD"]
[330691741,1719711095599,-2714.67,0.00014794,3]
[330691742,1719711095611,-802.38,0.00014794,3]
[330691743,1719711095621,-500.0,0.00014794,3]
[330691744,1719711095631,-500.0,0.00014794,3]
[330691745,1719711095640,-521.73,0.00014794,3]
[330691746,1719711095650,-500.0,0.00014794,3]
[330691747,1719711095660,-500.0,0.00014794,3]
[330691748,1719711095670,-500.0,0.00014794,3]
[330691749,1719711095682,-2040.84,0.00014794,3]
[330691750,1719711095692,-397.93406874,0.00014794,3]
[330691751,1719711095701,-532.39,0.00014794,3]
[330691752,1719711095711,-1265.1,0.00014794,3]
[330691753,1719711095721,-500.0,0.00014794,3]
[330691754,1719711095730,-500.0,0.00014794,3]
[330691755,1719711095740,-638.27896998,0.00014794,3]
[330691756,1719711095749,-500.0,0.00014794,3]
[330691757,1719711095759,-952.19,0.00014794,3]
[330691758,1719711095768,-529.97,0.00014794,3]
[330691759,1719711095778,-588.51,0.00014794,3]
[330691760,1719711095787,-500.0,0.00014794,3]
[330691761,1719711095797,-691.24,0.00014794,3]
[330691762,1719711095807,-660.79,0.00014794,3]
[330691763,1719711095817,-671.71,0.00014794,3]
[330691764,1719711095826,-500.0,0.00014794,3]
[330691765,1719711095836,-500.0,0.00014794,3]
[330691766,1719711095845,-500.0,0.00014794,3]
[330691767,1719711095854,-500.0,0.00014794,3]
[330691768,1719711095864,-500.0,0.00014794,3]
[330691769,1719711095874,-500.0,0.00014794,3]
[330691770,1719711095883,-548.68,0.00014794,3]
[330691771,1719711095892,-1531.98,0.00014794,3]
[330691772,1719711095902,-1034.28,0.00014794,3]
[330691773,1719711095912,-500.0,0.00014794,3]
[330691774,1719711095921,-588.83,0.00014794,3]
[330691775,1719711095931,-500.0,0.00014794,3]
[330691776,1719711095941,-538.51,0.00014794,3]
[330691777,1719711095952,-500.0,0.00014794,3]
[330691778,1719711095961,-511.23,0.00014794,3]
[330691779,1719711095971,-527.93,0.00014794,3]
[330691780,1719711095980,-500.0,0.00014794,3]
[330691781,1719711095990,-500.0,0.00014794,3]
[330691782,1719711095999,-599.85,0.00014794,3]
[330691783,1719711096009,-500.0,0.00014794,3]
[330691784,1719711096018,-500.0,0.00014794,3]
[330691785,1719711096027,-564.75,0.00014794,3]
[330691786,1719711096037,-879.24,0.00014794,3]
[330691787,1719711096047,-500.0,0.00014794,3]
[330691788,1719711096057,-998.73,0.00014794,3]
[330691789,1719711096066,-1046.19,0.00014794,3]
[330691790,1719711096076,-1382.68,0.00014794,3]
[330691791,1719711096085,-500.0,0.00014794,3]
[330691792,1719711096094,-500.0,0.00014794,3]
[330691793,1719711096104,-500.0,0.00014794,3]
[330691794,1719711096114,-500.0,0.00014794,3]
[330691795,1719711096124,-500.0,0.00014794,3]
[330691796,1719711096134,-1014.61,0.00014794,3]
[330691797,1719711096143,-500.0,0.00014794,3]
[330691798,1719711096152,-500.0,0.00014794,3]
[330691799,1719711096163,-500.0,0.00014794,3]
[330691800,1719711096172,-591.24045812,0.00014794,3]
[330691801,1719711096183,-500.0,0.00014794,3]
[330691802,1719711096192,-1918.33,0.00014794,3]
[330691803,1719711096202,-672.21,0.00014794,3]
[330691804,1719711096212,-500.0,0.00014794,3]
[330691805,1719711096222,-1152.62,0.00014794,3]
[330691806,1719711096232,-1012.12,0.00014794,3]
[330691807,1719711096241,-500.0,0.00014794,3]
[330691808,1719711096251,-805.69,0.00014794,3]
[330691809,1719711096262,-728.19,0.00014794,3]
[330691810,1719711096272,-500.75,0.00014794,3]
[330691811,1719711096282,-1145.72,0.00014794,3]
[330691812,1719711096292,-500.0,0.00014794,3]
[330691813,1719711096302,-636.14,0.00014794,3]
[330691814,1719711096313,-500.0,0.00014794,3]
[330691815,1719711096323,-959.16,0.00014794,3]
[330691816,1719711096332,-532.97,0.00014794,3]
[330691817,1719711096343,-500.0,0.00014794,3]
[330691818,1719711096352,-726.22,0.00014794,3]
[330691819,1719711096362,-500.0,0.00014794,3]
[330691820,1719711096372,-500.0,0.00014794,3]
[330691821,1719711096387,-500.0,0.00014794,3]
[330691822,1719711096401,-796.05,0.00014794,3]
[330691823,1719711096411,-500.0,0.00014794,3]
[330691824,1719711096422,-500.0,0.00014794,3]
[330691825,1719711096433,-1185.2,0.00014794,3]
[330691826,1719711096443,-500.0,0.00014794,3]
[330691828,1719711096453,-500.0,0.00014794,3]
[330691829,1719711096463,-583.84,0.00014794,3]
[330691830,1719711096473,-296.18,0.00014794,3]
[330691831,1719711096483,-500.0,0.00014794,3]
[330691832,1719711096494,-2306.38,0.00014794,3]
[330691833,1719711096504,-712.33,0.00014794,3]
[330691834,1719711096515,-500.0,0.00014794,3]
[330691835,1719711096526,-500.0,0.00014794,3]
[330691836,1719711096537,-567.32,0.00014794,3]
[330691837,1719711096550,-1188.2,0.00014794,3]
[330691838,1719711096560,-500.0,0.00014794,3]
[330691839,1719711096570,-500.0,0.00014794,3]
[330691840,1719711096582,-549.76,0.00014794,3]
[330691841,1719711096593,-708.58,0.00014794,3]
[330691842,1719711096608,-1071.25,0.00014794,3]
[330691843,1719711096618,-791.93,0.00014794,3]
[330691844,1719711096628,-500.0,0.00014794,3]
[330691845,1719711096638,-759.26,0.00014794,3]
[330691846,1719711096650,-538.9,0.00014794,3]
[330691847,1719711096661,-500.0,0.00014794,3]
[330691848,1719711096671,-500.0,0.00014794,3]
[330691849,1719711096682,-500.0,0.00014794,3]
[330691850,1719711096692,-500.0,0.00014794,3]
[330691851,1719711096702,-500.0,0.00014794,3]
[330691852,1719711096713,-608.49,0.00014794,3]
[330691853,1719711096723,-660.44,0.00014794,3]
[330691854,1719711096733,-500.0,0.00014794,3]
[330691855,1719711096744,-2629.63,0.00014794,3]
[330691856,1719711096756,-500.0,0.00014794,3]
[330691857,1719711096767,-500.0,0.00014794,3]
[330691858,1719711096779,-1298.08,0.00014794,3]
[330691859,1719711096790,-721.44,0.00014794,3]
[330691860,1719711096800,-551.41,0.00014794,3]
[330691861,1719711096810,-945.69,0.00014794,3]
[330691862,1719711096820,-500.0,0.00014794,3]
[330691863,1719711096831,-525.15,0.00014794,3]
[330691864,1719711096841,-1708.5,0.00014794,3]
[330691865,1719711096852,-781.98,0.00014794,3]
[330691866,1719711096862,-1393.7,0.00014794,3]
[330691867,1719711096872,-686.06,0.00014794,3]
[330691868,1719711096883,-500.0,0.00014794,3]
[330691869,1719711096893,-500.0,0.00014794,3]
[330691870,1719711096904,-500.0,0.00014794,3]
[330691871,1719711096914,-1608.03,0.00014794,3]
[330691872,1719711096924,-574.91,0.00014794,3]
[330691873,1719711096935,-500.0,0.00014794,3]
[330691874,1719711096946,-500.0,0.00014794,3]
[330691875,1719711096956,-679.33,0.00014794,3]
[330691876,1719711096966,-500.0,0.00014794,3]
[330691877,1719711096976,-500.0,0.00014794,3]
[330691878,1719711096986,-500.0,0.00014794,3]
[330691879,1719711096996,-500.0,0.00014794,3]
[330691880,1719711097006,-500.0,0.00014794,3]
[330691881,1719711097018,-4351.69,0.00014794,3]
[330691882,1719711097028,-899.57,0.00014794,3]
[330691883,1719711097038,-500.0,0.00014794,3]
[330691884,1719711097048,-590.76,0.00014794,3]
[330691885,1719711097059,-500.0,0.00014794,3]
[330691886,1719711097070,-581.58,0.00014794,3]
[330691887,1719711097080,-719.02,0.00014794,3]
[330691888,1719711097090,-680.73,0.00014794,3]
[330691889,1719711097099,-1466.68,0.00014794,3]
[330691890,1719711097109,-500.0,0.00014794,3]
[330691891,1719711097120,-1052.34,0.00014794,3]
[330691892,1719711097130,-8291.65,0.00014794,3]
[330691893,1719711097140,-500.0,0.00014794,3]
[330691894,1719711097150,-500.0,0.00014794,3]
[330691895,1719711097160,-500.0,0.00014794,3]
[330691896,1719711097170,-500.0,0.00014794,3]
[330691897,1719711097180,-857.65,0.00014794,3]
[330691898,1719711097189,-500.0,0.00014794,3]
[330691899,1719711097198,-733.86,0.00014794,3]
[330691900,1719711097208,-2739.13,0.00014794,3]
[330691901,1719711097219,-500.0,0.00014794,3]
[330691902,1719711097229,-500.0,0.00014794,3]
[330691903,1719711097240,-1644.16,0.00014794,3]
[330691904,1719711097250,-709.63,0.00014794,3]
[330691905,1719711097373,-1160.63,0.00014794,3]
[330691906,1719711097383,-500.0,0.00014794,3]
[330691907,1719711097393,-688.73,0.00014794,3]
[330691908,1719711097403,-500.0,0.00014794,3]
[330691909,1719711097412,-500.0,0.00014794,3]
[330691910,1719711097423,-515.33,0.00014794,3]
[330691911,1719711097433,-1136.46,0.00014794,3]
[330691912,1719711097443,-952.21,0.00014794,3]
[330691913,1719711097452,-651.27,0.00014794,3]
[330691914,1719711097463,-1024.41,0.00014794,3]
[330691915,1719711097472,-1657.35,0.00014794,3]
[330691916,1719711097482,-500.0,0.00014794,3]
[330691917,1719711097492,-666.12,0.00014794,3]
[330691918,1719711097502,-569.76,0.00014794,3]
[330691919,1719711097512,-1272.44,0.00014794,3]
[330691920,1719711097522,-500.0,0.00014794,3]
[330691921,1719711097532,-990.57,0.00014794,3]
[330691922,1719711097542,-500.0,0.00014794,3]
[330691923,1719711097552,-973.19,0.00014794,3]
[330691924,1719711097562,-500.0,0.00014794,3]
[330691925,1719711097572,-2333.23,0.00014794,3]
[330691926,1719711097582,-737.96,0.00014794,3]
[330691927,1719711097592,-681.0,0.00014794,3]
[330691928,1719711097607,-500.0,0.00014794,3]
[330691929,1719711097616,-2346.07,0.00014794,3]
[330691930,1719711097626,-500.0,0.00014794,3]
[330691931,1719711097636,-500.0,0.00014794,3]
[330691932,1719711097647,-2093.74,0.00014794,3]
[330691933,1719711097657,-500.0,0.00014794,3]
[330691934,1719711097668,-517.54,0.00014794,3]
[330691935,1719711097678,-741.16,0.00014794,3]
[330691936,1719711097689,-500.0,0.00014794,3]
[330691937,1719711097700,-1584.98,0.00014794,3]
[330691938,1719711097710,-17519.3,0.00014794,3]
[330691939,1719711097719,-500.0,0.00014794,3]
[330691940,1719711097729,-2255.93,0.00014794,3]
[330691941,1719711097739,-500.0,0.00014794,3]
[330691942,1719711097749,-733.6,0.00014794,3]
[330691943,1719711097759,-730.7,0.00014794,3]
[330691944,1719711097769,-1366.43,0.00014794,3]
[330691945,1719711097779,-2373.06,0.00014794,3]
[330691946,1719711097789,-500.0,0.00014794,3]
[330691947,1719711097799,-500.0,0.00014794,3]
[330691948,1719711097808,-1233.97,0.00014794,3]
[330691949,1719711097818,-973.08,0.00014794,3]
[330691950,1719711097829,-500.0,0.00014794,3]
[330691951,1719711097839,-500.0,0.00014794,3]
[330691952,1719711097848,-565.49,0.00014794,3]
[330691953,1719711097858,-1453.68,0.00014794,3]
[330691954,1719711097868,-500.0,0.00014794,3]
[330691955,1719711097879,-500.0,0.00014794,3]
[330691956,1719711097888,-2749.71,0.00014794,3]
[330691957,1719711097899,-500.0,0.00014794,3]
[330691958,1719711097909,-500.0,0.00014794,3]
[330691959,1719711097919,-1470.04,0.00014794,3]
[330691960,1719711097930,-1000.06,0.00014794,3]
[330691961,1719711097940,-789.6,0.00014794,3]
[330691962,1719711097949,-587.36,0.00014794,3]
[330691963,1719711097962,-3074.88,0.00014794,3]
[330691964,1719711097972,-1717.46,0.00014794,3]
[330691965,1719711097982,-553.57,0.00014794,3]
[330691966,1719711097992,-538.78,0.00014794,3]
[330691967,1719711098002,-734.77,0.00014794,3]
[330691968,1719711098011,-872.59,0.00014794,3]
[330691969,1719711098021,-505.1,0.00014794,3]
[330691970,1719711098031,-395.45790251,0.00014794,3]
[330691971,1719711098040,-4030.58,0.00014794,3]
[330691972,1719711098049,-1619.26,0.00014794,3]
[330691973,1719711098058,-1040.75,0.00014794,3]
[330691974,1719711098067,-312.02513864,0.00014794,3]
[330691975,1719711098077,-500.0,0.00014794,3]
[330691976,1719711098087,-1019.73,0.00014794,3]
[330691977,1719711098096,-500.0,0.00014794,3]
[330691978,1719711098106,-917.98,0.00014794,3]
[330691979,1719711098116,-500.0,0.00014794,3]
[330691980,1719711098125,-544.73,0.00014794,3]
[330691981,1719711098135,-500.0,0.00014794,3]
[330691982,1719711098144,-2026.5,0.00014794,3]
[330691983,1719711098154,-1434.62,0.00014794,3]
[330691984,1719711098164,-806.6,0.00014794,3]
[330691985,1719711098173,-914.82,0.00014794,3]
[330691986,1719711098186,-2283.96,0.00014794,3]
[330691987,1719711098196,-853.8,0.00014794,3]
[330691988,1719711098206,-500.0,0.00014794,3]
[330691989,1719711098215,-990.19,0.00014794,3]
[330691990,1719711098225,-527.87,0.00014794,3]
[330691991,1719711098234,-555.08,0.00014794,3]
[330691992,1719711098244,-500.0,0.00014794,3]
[330691993,1719711098254,-2932.06,0.00014794,3]
[330691994,1719711098264,-1092.71,0.00014794,3]
[330691995,1719711098274,-500.0,0.00014794,3]
[330691996,1719711098283,-1430.53,0.00014794,3]
[330691997,1719711098293,-866.85,0.00014794,3]
[330691998,1719711098305,-500.0,0.00014794,3]
[330691999,1719711098315,-500.0,0.00014794,3]
[330692000,1719711098324,-668.37,0.00014794,3]
[330692001,1719711098334,-804.46,0.00014794,3]
[330692002,1719711098345,-726.78,0.00014794,3]
[330692003,1719711098355,-623.27,0.00014794,3]
[330692004,1719711098364,-962.38,0.00014794,3]
[330692005,1719711098374,-1151.96,0.00014794,3]
[330692006,1719711098384,-500.0,0.00014794,3]
[330692007,1719711098394,-1231.81,0.00014794,3]
[330692008,1719711098404,-572.24,0.00014794,3]
[330692009,1719711098413,-500.0,0.00014794,3]
[330692010,1719711098423,-500.0,0.00014794,3]
[330692011,1719711098435,-789.18,0.00014794,3]
[330692012,1719711098444,-500.0,0.00014794,3]
[330692013,1719711098455,-2872.85,0.00014794,3]
[330692014,1719711098466,-200.0,0.000148,5]
[330692015,1719711098476,-488.96,0.00014837,2]
[330692016,1719711098485,-151.15,0.00014862,2]
[330692017,1719711098495,-164.03076331,0.000149,2]
[330692018,1719711098505,-200.0,0.000149,5]
[330692019,1719711098515,-1246.57,0.00014904,3]
[330692020,1719711098524,-2620.27,0.00014904,3]
[330692021,1719711098534,-771.15,0.00014904,3]
[330692022,1719711098543,-2420.64,0.00014904,3]
[330692023,1719711098553,-1036.09,0.00014904,3]
[330692024,1719711098563,-2486.42,0.00014904,3]
[330692025,1719711098573,-1825.95,0.00014904,3]
[330692026,1719711098582,-500.0,0.00014904,3]
[330692027,1719711098592,-3712.27,0.00014904,3]
[330692028,1719711098602,-512.43213431,0.00014904,3]
[330692029,1719711098614,-500.0,0.00014904,3]
[330692030,1719711098623,-238.19335715,0.00014904,3]
[330692031,1719711098633,-2737.34,0.00014904,3]
[330692032,1719711098646,-1116.78,0.00014904,3]
[330692033,1719711098656,-500.0,0.00014904,3]
[330692034,1719711098667,-500.0,0.00014904,3]
[330692035,1719711098677,-500.0,0.00014904,3]
[330692036,1719711098688,-212.1136299,0.00014904,3]
[330692037,1719711098697,-500.0,0.00014904,3]
[330692038,1719711098707,-2164.74,0.00014904,3]
[330692039,1719711098717,-333.35592348,0.00014904,3]
[330692040,1719711098727,-500.0,0.00014904,3]
[330692041,1719711098737,-500.0,0.00014904,3]
[330692042,1719711098747,-1569.95,0.00014904,3]
[330692043,1719711098756,-500.0,0.00014904,3]
[330692044,1719711098766,-500.0,0.00014904,3]
[330692045,1719711098776,-4687.88,0.00014904,3]
[330692046,1719711098786,-500.0,0.00014904,3]
[330692047,1719711098796,-684.17,0.00014904,3]
[330692048,1719711098805,-713.16,0.00014904,3]
[330692049,1719711098816,-500.0,0.00014904,3]
[330692050,1719711098827,-500.0,0.00014904,3]
[330692051,1719711098836,-1295.72,0.00014904,3]
[330692052,1719711098846,-500.0,0.00014904,3]
[330692053,1719711098856,-500.0,0.00014904,3]
[330692054,1719711098865,-500.0,0.00014904,3]
[330692055,1719711098876,-1900.6,0.00014904,3]
[330692056,1719711098886,-500.0,0.00014904,3]
[330692057,1719711098896,-500.0,0.00014904,3]
[330692058,1719711098908,-500.0,0.00014904,3]
[330692059,1719711098918,-710.78,0.00014904,3]
[330692060,1719711098929,-500.0,0.00014904,3]
[330692061,1719711098938,-1699.63,0.00014904,3]
[330692062,1719711098948,-500.0,0.00014904,3]
[330692063,1719711098957,-500.0,0.00014904,3]
[330692064,1719711098966,-500.0,0.00014904,3]
[330692065,1719711098976,-601.07,0.00014904,3]
[330692066,1719711098986,-1066.9,0.00014904,3]
[330692067,1719711098995,-331.52784673,0.00014904,3]
[330692068,1719711099005,-495.36585638,0.00014904,3]
[330692069,1719711099015,-500.0,0.00014904,3]
[330692070,1719711099025,-832.37,0.00014904,3]
[330692071,1719711099035,-500.0,0.00014904,3]
[330692072,1719711099044,-1071.66,0.00014904,3]
[330692073,1719711099054,-500.0,0.00014904,3]
[330692074,1719711099065,-716.2,0.00014904,3]
[330692075,1719711099075,-761.79,0.00014904,3]
[330692076,1719711099085,-533.26,0.00014904,3]
[330692077,1719711099095,-519.14,0.00014904,3]
[330692078,1719711099106,-663.53,0.00014904,3]
[330692079,1719711099116,-500.0,0.00014904,3]
[330692080,1719711099126,-911.02,0.00014904,3]
[330692081,1719711099136,-500.98,0.00014904,3]
[330692082,1719711099145,-1050.04,0.00014904,3]
[330692083,1719711099155,-755.44,0.00014904,3]
[330692084,1719711099164,-627.64,0.00014904,3]
[330692085,1719711099174,-1768.33,0.00014904,3]
[330692086,1719711099185,-500.0,0.00014904,3]
[330692087,1719711099195,-500.0,0.00014904,3]
[330692088,1719711099204,-500.0,0.00014904,3]
[330692089,1719711099214,-500.0,0.00014904,3]
[330692090,1719711099223,-644.01,0.00014904,3]
[330692091,1719711099233,-500.0,0.00014904,3]
[330692092,1719711099243,-859.12,0.00014904,3]
[330692093,1719711099252,-889.76,0.00014904,3]
[330692094,1719711099262,-500.0,0.00014904,3]
[330692095,1719711099271,-500.0,0.00014904,3]
[330692096,1719711099281,-534.75,0.00014904,3]
[330692097,1719711099291,-500.0,0.00014904,3]
[330692098,1719711099301,-500.0,0.00014904,3]
[330692099,1719711099310,-651.9,0.00014904,3]
[330692100,1719711099320,-500.0,0.00014904,3]
[330692101,1719711099329,-157.71593731,0.00014904,3]
[330692102,1719711099339,-1138.76,0.00014904,3]
[330692103,1719711099349,-578.29,0.00014904,3]
[330692104,1719711099358,-721.45,0.00014904,3]
[330692105,1719711099367,-617.2,0.00014904,3]
[330692106,1719711099377,-649.15,0.00014904,3]
[330692107,1719711099387,-500.0,0.00014904,3]
[330692108,1719711099397,-595.24,0.00014904,3]
[330692109,1719711099407,-531.66364475,0.00014904,3]
[330692110,1719711099416,-551.62,0.00014904,3]
[330692111,1719711099426,-548.68,0.00014904,3]
[330692112,1719711099436,-500.0,0.00014904,3]
[330692113,1719711099445,-780.35,0.00014904,3]
[330692114,1719711099455,-500.0,0.00014904,3]
[330692115,1719711099465,-500.0,0.00014904,3]
[330692116,1719711099475,-540.99,0.00014904,3]
[330692117,1719711099484,-517.82,0.00014904,3]
[330692118,1719711099494,-737.39,0.00014904,3]
[330692119,1719711099504,-500.0,0.00014904,3]
[330692120,1719711099514,-605.18,0.00014904,3]
[330692121,1719711099524,-500.0,0.00014904,3]
[330692122,1719711099533,-500.0,0.00014904,3]
[330692123,1719711099543,-600.31,0.00014904,3]
[330692124,1719711099552,-500.0,0.00014904,3]
[330692125,1719711099561,-880.06,0.00014904,3]
[330692126,1719711099571,-500.0,0.00014904,3]
[330692127,1719711099581,-537.38,0.00014904,3]
[330692128,1719711099590,-1133.19,0.00014904,3]
[330692129,1719711099602,-582.47,0.00014904,3]
[330692130,1719711099612,-772.55,0.00014904,3]
[330692131,1719711099621,-500.0,0.00014904,3]
[330692132,1719711099631,-862.26,0.00014904,3]
[330692133,1719711099640,-510.91,0.00014904,3]
[330692134,1719711099650,-2714.67,0.00014904,3]
[330692135,1719711099660,-802.38,0.00014904,3]
[330692136,1719711099669,-500.0,0.00014904,3]
[330692137,1719711099680,-500.0,0.00014904,3]
[330692138,1719711099689,-521.73,0.00014904,3]
[330692139,1719711099699,-500.0,0.00014904,3]
[330692140,1719711099709,-500.0,0.00014904,3]
[330692141,1719711099719,-500.0,0.00014904,3]
[330692142,1719711099728,-532.39,0.00014904,3]
[330692143,1719711099738,-2040.84,0.00014904,3]
[330692144,1719711099747,-1265.1,0.00014904,3]
[330692145,1719711099758,-500.0,0.00014904,3]
[330692146,1719711099767,-500.0,0.00014904,3]
[330692147,1719711099778,-500.0,0.00014904,3]
[330692148,1719711099788,-952.19,0.00014904,3]
[330692149,1719711099797,-529.97,0.00014904,3]
[330692150,1719711099807,-588.51,0.00014904,3]
[330692151,1719711099817,-500.0,0.00014904,3]
[330692152,1719711099827,-691.24,0.00014904,3]
[330692153,1719711099836,-660.79,0.00014904,3]
[330692154,1719711099845,-671.71,0.00014904,3]
[330692155,1719711099855,-500.0,0.00014904,3]
[330692156,1719711099865,-500.0,0.00014904,3]
[330692157,1719711099875,-500.0,0.00014904,3]
[330692158,1719711099885,-500.0,0.00014904,3]
[330692159,1719711099895,-500.0,0.00014904,3]
[330692160,1719711099905,-500.0,0.00014904,3]
[330692161,1719711099915,-548.68,0.00014904,3]
[330692162,1719711099925,-1531.98,0.00014904,3]
[330692163,1719711099935,-1034.28,0.00014904,3]
[330692164,1719711099944,-500.0,0.00014904,3]
[330692165,1719711099953,-588.83,0.00014904,3]
[330692166,1719711099963,-500.0,0.00014904,3]
[330692167,1719711099972,-538.51,0.00014904,3]
[330692168,1719711099982,-500.0,0.00014904,3]
[330692169,1719711099992,-511.23,0.00014904,3]
[330692170,1719711100001,-527.93,0.00014904,3]
[330692171,1719711100010,-500.0,0.00014904,3]
[330692172,1719711100020,-500.0,0.00014904,3]
[330692173,1719711100029,-599.85,0.00014904,3]
[330692174,1719711100038,-500.0,0.00014904,3]
[330692175,1719711100047,-500.0,0.00014904,3]
[330692176,1719711100057,-564.75,0.00014904,3]
[330692177,1719711100066,-879.24,0.00014904,3]
[330692178,1719711100076,-500.0,0.00014904,3]
[330692179,1719711100086,-1046.19,0.00014904,3]
[330692180,1719711100095,-998.73,0.00014904,3]
[330692181,1719711100105,-1382.68,0.00014904,3]
[330692182,1719711100114,-500.0,0.00014904,3]
[330692183,1719711100124,-500.0,0.00014904,3]
[330692184,1719711100133,-500.0,0.00014904,3]
[330692185,1719711100143,-500.0,0.00014904,3]
[330692186,1719711100152,-500.0,0.00014904,3]
[330692187,1719711100161,-500.0,0.00014904,3]
[330692188,1719711100170,-1014.61,0.00014904,3]
[330692189,1719711100179,-500.0,0.00014904,3]
[330692190,1719711100190,-500.0,0.00014904,3]
[330692191,1719711100199,-500.0,0.00014904,3]
[330692192,1719711100209,-1918.33,0.00014904,3]
[330692193,1719711100218,-672.21,0.00014904,3]
[330692194,1719711100228,-500.0,0.00014904,3]
[330692195,1719711100237,-1152.62,0.00014904,3]
[330692196,1719711100247,-1012.12,0.00014904,3]
[330692197,1719711100256,-500.0,0.00014904,3]
[330692198,1719711100265,-805.69,0.00014904,3]
[330692199,1719711100275,-728.19,0.00014904,3]
[330692200,1719711100284,-500.75,0.00014904,3]
[330692201,1719711100293,-1145.72,0.00014904,3]
[330692202,1719711100303,-500.0,0.00014904,3]
[330692203,1719711100312,-636.14,0.00014904,3]
[330692204,1719711100322,-500.0,0.00014904,3]
[330692205,1719711100331,-532.97,0.00014904,3]
[330692206,1719711100340,-959.16,0.00014904,3]
[330692207,1719711100350,-500.0,0.00014904,3]
[330692208,1719711100359,-726.22,0.00014904,3]
[330692209,1719711100368,-500.0,0.00014904,3]
[330692210,1719711100378,-500.0,0.00014904,3]
[330692211,1719711100387,-500.0,0.00014904,3]
[330692212,1719711100402,-796.05,0.00014904,3]
[330692213,1719711100412,-500.0,0.00014904,3]
[330692214,1719711100422,-500.0,0.00014904,3]
[330692215,1719711100432,-1185.2,0.00014904,3]
[330692216,1719711100442,-531.56047441,0.00014904,2]
[330692217,1719711100451,-500.0,0.00014904,3]
[330692218,1719711100460,-500.0,0.00014904,3]
[330692219,1719711100469,-583.84,0.00014904,3]
[330692220,1719711100479,-296.18,0.00014904,3]
[330692221,1719711100488,-500.0,0.00014904,3]
[330692222,1719711100497,-2306.38,0.00014904,3]
[330692223,1719711100507,-712.33,0.00014904,3]
[330692224,1719711100515,-500.0,0.00014904,3]
[330692225,1719711100524,-500.0,0.00014904,3]
[330692226,1719711100534,-567.32,0.00014904,3]
[330692227,1719711100543,-1188.2,0.00014904,3]
[330692228,1719711100553,-500.0,0.00014904,3]
[330692229,1719711100562,-500.0,0.00014904,3]
[330692230,1719711100571,-549.76,0.00014904,3]
[330692231,1719711100581,-708.58,0.00014904,3]
[330692232,1719711100590,-1071.25,0.00014904,3]
[330692233,1719711100600,-176.61821913,0.00014904,2]
[330692234,1719711100612,-791.93,0.00014904,3]
[330692235,1719711100622,-500.0,0.00014904,3]
[330692236,1719711100631,-759.26,0.00014904,3]
[330692237,1719711100640,-538.9,0.00014904,3]
[330692238,1719711100650,-500.0,0.00014904,3]
[330692239,1719711100659,-500.0,0.00014904,3]
[330692240,1719711100668,-500.0,0.00014904,3]
[330692241,1719711100678,-500.0,0.00014904,3]